bitfinex-derivatives/quotes_BTCF0:USTF0_20241103
["timestamp","ask_amount","ask_price","bid_price","bid_amount"]
[1730617733324,0.002,68672.0,68671.0,0.29312383]
[1730617734227,0.002,68672.0,68671.0,0.22057192]
[1730617737034,0.002,68672.0,68671.0,0.30763692]
[1730617738331,0.002,68672.0,68671.0,0.30733255]
[1730617739238,0.002,68672.0,68671.0,0.22026755]
[1730617741738,0.002,68672.0,68671.0,0.22026008]
[1730617746433,0.002,68672.0,68671.0,0.22024855]
[1730617748240,0.002,68672.0,68671.0,0.30731355]
[1730617748429,0.002,68672.0,68671.0,0.22024855]
[1730617749142,0.002,68672.0,68671.0,0.29275603]
[1730617751431,0.074835,68672.0,68671.0,0.011]
[1730617751837,0.074835,68672.0,68671.0,0.05452416]
[1730617752340,0.074835,68672.0,68671.0,0.011]
[1730617752539,0.074835,68672.0,68671.0,0.05452416]
[1730617753141,0.074835,68672.0,68671.0,0.011]
[1730617753342,0.074835,68672.0,68671.0,0.05452416]
[1730617754246,0.074835,68672.0,68671.0,0.011]
[1730617755647,0.435635,68672.0,68671.0,0.011]
[1730617756247,0.435635,68672.0,68671.0,0.05452416]
[1730617756950,0.074835,68672.0,68671.0,0.011]
[1730617757248,0.435635,68672.0,68671.0,0.011]
[1730617760344,0.074835,68672.0,68671.0,0.011]
[1730617760551,0.435635,68672.0,68671.0,0.011]
[1730617760751,0.49992772,68672.0,68671.0,0.011]
[1730617762355,0.435635,68672.0,68671.0,0.011]
[1730617763042,0.435635,68672.0,68671.0,0.0690109]
[1730617768077,0.435635,68672.0,68671.0,0.011]
[1730617779263,0.435635,68672.0,68671.0,0.05446817]
[1730617780268,0.435635,68672.0,68671.0,0.011]
[1730617781562,0.435635,68672.0,68671.0,0.0690109]
[1730617781764,0.435635,68672.0,68671.0,0.14812872]
[1730617781765,0.3628,68672.0,68671.0,0.14812872]
[1730617781959,0.3628,68672.0,68671.0,0.24080306]
[1730617782270,0.3628,68672.0,68671.0,0.14812872]
[1730617783162,0.435635,68672.0,68671.0,0.083836]
[1730617787060,0.435635,68672.0,68671.0,0.14812872]
[1730617794178,0.435635,68672.0,68671.0,0.20610641]
[1730617796673,0.074835,68672.0,68671.0,0.20610641]
[1730617796868,0.435635,68672.0,68671.0,0.20610641]
[1730617798276,0.074835,68672.0,68671.0,0.20610641]
[1730617798479,0.435635,68672.0,68671.0,0.20610641]
[1730617799378,0.074835,68672.0,68671.0,0.20610641]
[1730617799590,0.435635,68672.0,68671.0,0.20610641]
[1730617800677,0.435635,68672.0,68671.0,0.06898466]
[1730617800880,0.435635,68672.0,68671.0,0.011]
[1730617803473,0.435635,68672.0,68671.0,0.083836]
[1730617803669,0.435635,68672.0,68671.0,0.15633243]
[1730617805175,0.435635,68672.0,68671.0,0.24883446]
[1730617805485,0.435635,68672.0,68671.0,0.15633243]
[1730617805881,0.435635,68672.0,68671.0,0.2812499]
[1730617807584,0.3628,68672.0,68671.0,0.20875347]
[1730617808995,0.3628,68672.0,68671.0,0.29991347]
[1730617810274,0.002,68672.0,68671.0,0.29991347]
[1730617810883,0.002,68672.0,68671.0,0.38697847]
[1730617811386,0.002,68672.0,68671.0,0.36420619]
[1730617811578,0.002,68672.0,68671.0,0.47393292]
[1730617811784,0.002,68672.0,68671.0,0.4096402]
[1730617812286,0.002,68672.0,68671.0,0.47380307]
[1730617812476,0.002,68672.0,68671.0,0.40951035]
[1730617813492,0.002,68672.0,68671.0,0.29991347]
[1730617815495,0.002,68672.0,68671.0,0.66071347]
[1730617817283,0.002,68672.0,68671.0,0.29991347]
[1730617817683,0.002,68672.0,68671.0,0.66071347]
[1730617818790,0.002,68672.0,68671.0,0.29991347]
[1730617818993,0.002,68672.0,68671.0,0.65996999]
[1730617819494,0.002,68672.0,68671.0,0.29916999]
[1730617819694,0.002,68672.0,68671.0,0.65996999]
[1730617821185,0.002,68672.0,68671.0,0.73238718]
[1730617821894,0.002,68672.0,68671.0,0.64061319]
[1730617822090,0.002,68672.0,68671.0,0.73237268]
[1730617822791,0.002,68672.0,68671.0,0.37157268]
[1730617822996,0.002,68672.0,68671.0,0.73237268]
[1730617823497,0.002,68672.0,68671.0,0.73236758]
[1730617823688,0.002,68672.0,68671.0,0.65994435]
[1730617824197,0.002,68672.0,68671.0,0.73235592]
[1730617824386,0.002,68672.0,68671.0,0.65994435]
[1730617824582,0.002,68672.0,68671.0,0.74683444]
[1730617825392,0.002,68672.0,68671.0,0.65994435]
[1730617826096,0.002,68672.0,68671.0,0.62754435]
[1730617826804,0.002,68672.0,68671.0,0.26674435]
[1730617827004,0.002,68672.0,68671.0,0.62754435]
[1730617829491,0.074835,68672.0,68671.0,0.62754435]
[1730617834794,0.002,68672.0,68671.0,0.62754435]
[1730617837102,0.002,68672.0,68671.0,0.71443444]
[1730617837507,0.002,68672.0,68671.0,0.71459028]
[1730617839608,0.002,68672.0,68671.0,0.62770019]
[1730617839798,0.002,68672.0,68671.0,0.26690019]
[1730617843106,0.072822,68684.0,68671.0,0.47603052]
[1730617843309,0.072822,68684.0,68683.0,0.1951282]
[1730617845111,0.072821,68686.0,68685.0,0.072821]
[1730617846611,0.076821,68686.0,68685.0,0.072821]
[1730617847911,0.012,68686.0,68683.0,0.10715391]
[1730617848108,0.072822,68684.0,68683.0,0.10715391]
[1730617848707,0.072822,68684.0,68683.0,0.17997691]
[1730617849102,0.072822,68684.0,68683.0,0.18097691]
[1730617849716,0.072822,68684.0,68683.0,0.17997691]
[1730617849918,0.076822,68684.0,68683.0,0.17997691]
[1730617852013,0.004,68684.0,68683.0,0.17997691]
[1730617852213,0.004,68684.0,68683.0,0.34406422]
[1730617852415,0.004,68684.0,68683.0,0.27154862]
[1730617854420,0.009,68684.0,68683.0,0.27154862]
[1730617854609,0.009,68684.0,68683.0,0.17997691]
[1730617855521,0.3608,68687.0,68683.0,0.17997691]
[1730617855714,0.3608,68687.0,68686.0,0.07282]
[1730617856216,0.072813,68694.0,68692.0,0.072813]
[1730617856519,0.072813,68694.0,68693.0,0.06429272]
[1730617858919,0.080813,68694.0,68693.0,0.06729272]
[1730617861119,0.080813,68694.0,68693.0,0.003]
[1730617862925,0.441613,68694.0,68693.0,0.003]
[1730617868511,0.080813,68694.0,68693.0,0.003]
[1730617868712,0.441613,68694.0,68693.0,0.003]
[1730617869914,0.080813,68694.0,68693.0,0.003]
[1730617870108,0.441613,68694.0,68693.0,0.003]
[1730617870326,0.441613,68694.0,68693.0,0.04644723]
[1730617870715,0.080813,68694.0,68693.0,0.04644723]
[1730617871027,0.441613,68694.0,68693.0,0.04644723]
[1730617872025,0.441613,68694.0,68693.0,0.003]
[1730617872228,0.441613,68694.0,68693.0,0.04644723]
[1730617874530,0.080813,68694.0,68693.0,0.04644723]
[1730617874834,0.441613,68694.0,68693.0,0.04644723]
[1730617875413,0.441613,68694.0,68693.0,0.04646703]
[1730617876822,0.441613,68694.0,68693.0,0.003]
[1730617878218,0.441613,68694.0,68693.0,0.06096382]
[1730617879934,0.440113,68694.0,68693.0,0.06096382]
[1730617880131,0.440113,68694.0,68693.0,0.003]
[1730617882432,0.440113,68694.0,68693.0,0.06729272]
[1730617893954,0.079313,68694.0,68693.0,0.06729272]
[1730617894351,0.440113,68694.0,68693.0,0.06729272]
[1730617897251,0.440113,68694.0,68693.0,0.12530797]
[1730617898544,0.440113,68694.0,68693.0,0.06729272]
[1730617900040,0.440113,68694.0,68693.0,0.12530711]
[1730617902248,0.440113,68694.0,68693.0,0.19812011]
[1730617902450,0.440113,68694.0,68693.0,0.14010572]
[1730617907052,0.440113,68694.0,68693.0,0.18360097]
[1730617907462,0.440113,68694.0,68693.0,0.14010572]
[1730617907656,0.440113,68694.0,68693.0,0.18359743]
[1730617908460,0.440113,68694.0,68693.0,0.14010572]
[1730617912856,0.008,68694.0,68693.0,0.14010572]
[1730617913055,0.008,68694.0,68693.0,0.23114572]
[1730617914958,0.008,68694.0,68693.0,0.32172323]
[1730617922977,0.008,68694.0,68693.0,0.39410804]
[1730617923285,0.008,68694.0,68693.0,0.30353053]
[1730617927677,0.080812,68694.0,68693.0,0.003]
[1730617928385,0.517532,68694.0,68693.0,0.003]
[1730617930470,0.517532,68694.0,68685.0,0.04344024]
[1730617930666,0.517532,68694.0,68683.0,0.04344024]
[1730617930667,0.3608,68686.0,68683.0,0.04344024]
[1730617930868,0.0317,68685.0,68681.0,0.04344024]
[1730617931083,0.0317,68685.0,68680.0,0.06429272]
[1730617931084,0.072824,68682.0,68680.0,0.10773296]
[1730617931275,0.072825,68681.0,68680.0,0.10773296]
[1730617931470,0.072825,68681.0,68680.0,0.06429272]
[1730617931872,0.433625,68681.0,68680.0,0.06429272]
[1730617934082,0.434625,68681.0,68680.0,0.06429272]
[1730617934282,0.434625,68681.0,68680.0,0.06829272]
[1730617953584,0.434625,68681.0,68680.0,0.11173296]
[1730617954586,0.434625,68681.0,68680.0,0.06829272]
[1730617961589,0.434625,68681.0,68680.0,0.12625263]
[1730617964199,0.434625,68681.0,68680.0,0.14111872]
[1730617965792,0.434625,68681.0,68680.0,0.06829272]
[1730617966894,0.434625,68681.0,68680.0,0.11184632]
[1730617967093,0.434625,68681.0,68680.0,0.20310654]
[1730617967598,0.434625,68681.0,68680.0,0.27556345]
[1730617968398,0.00218431,68758.0,68704.0,0.3608]
[1730617968607,0.00218431,68758.0,68752.0,0.07275]
[1730617968608,0.06429272,68753.0,68752.0,0.07275]
[1730617968806,0.06429272,68753.0,68752.0,0.3608]
[1730617968991,0.072762,68741.0,68734.0,0.06429272]
[1730617969198,0.072762,68741.0,68728.0,0.3608]
[1730617969199,0.072768,68735.0,68730.0,0.06429272]
[1730617969404,0.072772,68731.0,68730.0,0.06429272]
[1730617969707,0.072772,68731.0,68728.0,0.41874741]
[1730617969708,0.072773,68730.0,68729.0,0.14109611]
[1730617970000,0.072773,68730.0,68729.0,0.09788251]
[1730617970400,0.072775,68729.0,68728.0,0.3608]
[1730617970607,0.072775,68729.0,68728.0,0.285588]
[1730617971694,0.072775,68729.0,68728.0,0.211115]
[1730617971908,0.008,68730.0,68728.0,0.211115]
[1730617972705,0.0301,68734.0,68728.0,0.211115]
[1730617972906,0.008,68729.0,68728.0,0.30999751]
[1730617973698,0.008,68730.0,68728.0,0.30999751]
[1730617974400,0.005,68729.0,68728.0,0.30999751]
[1730617974603,0.013,68729.0,68728.0,0.30999751]
[1730617975604,0.008,68729.0,68728.0,0.30999751]
[1730617976608,0.07409313,68734.0,68728.0,0.30899751]
[1730617976804,0.008,68730.0,68728.0,0.30999751]
[1730617977500,0.013,68729.0,68728.0,0.30999751]
[1730617977902,0.005,68729.0,68728.0,0.30899751]
[1730617978103,0.005,68729.0,68728.0,0.30999751]
[1730617978398,0.008,68730.0,68728.0,0.31199751]
[1730617979109,0.008,68730.0,68728.0,0.31299751]
[1730617979608,0.07409313,68734.0,68728.0,0.31199751]
[1730617979802,0.007,68729.0,68728.0,0.31299751]
[1730617980198,0.07409313,68734.0,68728.0,0.31199751]
[1730617980409,0.008,68730.0,68728.0,0.31299751]
[1730617981015,0.007,68729.0,68728.0,0.31199751]
[1730617981512,0.0656,68740.0,68728.0,0.31099751]
[1730617981711,0.0656,68740.0,68735.0,0.3608]
[1730617982416,0.10871424,68740.0,68735.0,0.3608]
[1730617983415,0.0317,68747.0,68739.0,0.45868251]
[1730617983715,0.0317,68747.0,68746.0,0.3608]
[1730617983903,0.07630594,68747.0,68746.0,0.3608]
[1730617984110,0.0317,68747.0,68746.0,0.3608]
[1730617984708,0.0367,68747.0,68746.0,0.3608]
[1730617985502,0.0367,68747.0,68746.0,0.45868251]
[1730617986418,0.056055,68747.0,68746.0,0.3618]
[1730617986617,0.056055,68747.0,68746.0,0.45968251]
[1730617986915,0.048055,68747.0,68746.0,0.45868251]
[1730617987101,0.056055,68747.0,68746.0,0.45968251]
[1730617993013,0.013,68747.0,68746.0,0.45968251]
[1730617993913,0.013,68747.0,68746.0,0.3618]
[1730617997522,0.013,68747.0,68746.0,0.45968251]
[1730617998923,0.013,68747.0,68746.0,0.3618]
[1730618000214,0.005,68747.0,68746.0,0.3608]
[1730618000421,0.013,68747.0,68746.0,0.3618]
[1730618001116,0.008,68747.0,68746.0,0.3618]
[1730618001329,0.009,68747.0,68746.0,0.3618]
[1730618002523,0.009,68747.0,68746.0,0.001]
[1730618002724,0.009,68747.0,68746.0,0.3618]
[1730618003428,0.009,68747.0,68746.0,0.001]
[1730618003622,0.009,68747.0,68746.0,0.3618]
[1730618004708,0.009,68747.0,68746.0,0.001]
[1730618004915,0.009,68747.0,68746.0,0.3618]
[1730618005323,0.009,68747.0,68746.0,0.001]
[1730618005723,0.009,68747.0,68746.0,0.3618]
[1730618006429,0.009,68747.0,68746.0,0.001]
[1730618006632,0.009,68747.0,68746.0,0.3618]
[1730618006818,0.009,68747.0,68746.0,0.40496076]
[1730618007016,0.009,68747.0,68746.0,0.3618]
[1730618008629,0.009,68747.0,68746.0,0.40496076]
[1730618009835,0.009,68747.0,68746.0,0.3618]
[1730618012336,0.009,68747.0,68746.0,0.41974741]
[1730618013328,0.009,68747.0,68746.0,0.3618]
[1730618013836,0.009,68747.0,68746.0,0.41961757]
[1730618014346,0.009,68747.0,68746.0,0.3618]
[1730618015729,0.009,68747.0,68746.0,0.41962138]
[1730618016849,0.008,68747.0,68746.0,0.41962138]
[1730618017452,0.008,68747.0,68746.0,0.3618]
[1730618018335,0.008,68747.0,68746.0,0.41962046]
[1730618018534,0.008,68747.0,68746.0,0.3618]
[1730618023444,0.008,68747.0,68746.0,0.001]
[1730618028763,0.008,68747.0,68746.0,0.3618]
[1730618029258,0.008,68747.0,68746.0,0.001]
[1730618029457,0.008,68747.0,68746.0,0.3618]
[1730618035661,0.008,68747.0,68746.0,0.001]
[1730618051774,0.008,68747.0,68746.0,0.04437491]
[1730618053280,0.008,68747.0,68746.0,0.001]
[1730618055881,0.0443821,68747.0,68746.0,0.001]
[1730618057781,0.008,68747.0,68746.0,0.001]
[1730618058776,0.50861676,68747.0,68746.0,0.001]
[1730618058978,0.4444,68747.0,68746.0,0.001]
[1730618063276,0.50861676,68747.0,68746.0,0.001]
[1730618063975,0.86941676,68747.0,68746.0,0.001]
[1730618065489,0.8052,68747.0,68746.0,0.001]
[1730618066380,0.86941676,68747.0,68746.0,0.001]
[1730618067990,0.8052,68747.0,68746.0,0.001]
[1730618070091,0.86941676,68747.0,68746.0,0.001]
[1730618071187,0.96109676,68747.0,68746.0,0.001]
[1730618073277,0.99706127,68747.0,68746.0,0.001]
[1730618073689,0.49644451,68747.0,68746.0,0.001]
[1730618074589,0.40476451,68747.0,68746.0,0.001]
[1730618074796,0.49644451,68747.0,68746.0,0.001]
[1730618075695,0.13564451,68747.0,68746.0,0.001]
[1730618075992,0.49644451,68747.0,68746.0,0.001]
[1730618077989,0.4965078,68747.0,68746.0,0.001]
[1730618078182,0.4048278,68747.0,68746.0,0.001]
[1730618078380,0.4963478,68747.0,68746.0,0.001]
[1730618078992,0.46032,68747.0,68746.0,0.001]
[1730618079989,0.09952,68747.0,68746.0,0.001]
[1730618080191,0.46032,68747.0,68746.0,0.001]
[1730618082898,0.52453676,68747.0,68746.0,0.001]
[1730618083400,0.43301676,68747.0,68746.0,0.001]
[1730618083696,0.52453676,68747.0,68746.0,0.001]
[1730618083899,0.46032,68747.0,68746.0,0.001]
[1730618084495,0.09952,68747.0,68746.0,0.001]
[1730618084697,0.46032,68747.0,68746.0,0.001]
[1730618093001,0.49620784,68747.0,68746.0,0.001]
[1730618093708,0.46032,68747.0,68746.0,0.001]
[1730618093910,0.49698971,68747.0,68746.0,0.001]
[1730618094809,0.46032,68747.0,68746.0,0.001]
[1730618100309,0.3688,68747.0,68746.0,0.001]
[1730618100515,0.008,68747.0,68746.0,0.001]
[1730618100708,0.09952,68747.0,68746.0,0.001]
[1730618100905,0.09952,68747.0,68746.0,0.04437446]
[1730618101415,0.09952,68747.0,68746.0,0.001]
[1730618101715,0.008,68747.0,68746.0,0.001]
[1730618101915,0.09952,68747.0,68746.0,0.001]
[1730618104203,0.008,68747.0,68746.0,0.001]
[1730618107811,0.07221676,68747.0,68746.0,0.001]
[1730618108015,0.16341676,68747.0,68746.0,0.001]
[1730618109117,0.16341676,68747.0,68738.0,0.04337446]
[1730618109118,0.59981676,68747.0,68738.0,0.04337446]
[1730618109321,0.06421676,68741.0,68737.0,0.04337446]
[1730618109502,0.06421676,68738.0,68737.0,0.04337446]
[1730618109707,0.15541676,68738.0,68737.0,0.04337446]
[1730618110017,0.15541676,68738.0,68732.0,0.3637421]
[1730618110319,0.06421676,68734.0,68732.0,0.3629821]
[1730618111017,0.06421676,68734.0,68732.0,0.0021821]
[1730618112313,0.06521676,68734.0,68732.0,0.0141821]
[1730618113614,0.06521676,68734.0,68732.0,0.015]
[1730618113806,0.06521676,68734.0,68733.0,0.0639]
[1730618114202,0.10785778,68734.0,68733.0,0.0639]
[1730618115102,0.10785778,68734.0,68733.0,0.0759]
[1730618115413,0.10785778,68734.0,68733.0,0.0789]
[1730618120715,0.001,68734.0,68733.0,0.12224185]
[1730618120921,0.001,68734.0,68733.0,0.1115]
[1730618121315,0.001,68734.0,68733.0,0.54798]
[1730618121518,0.001,68734.0,68733.0,0.96661323]
[1730618125011,0.001,68734.0,68733.0,0.90878]
[1730618130225,0.06521676,68734.0,68733.0,0.3758]
[1730618132519,0.001,68734.0,68733.0,0.3758]
[1730618134933,0.06521676,68734.0,68733.0,0.3758]
[1730618136727,0.06521676,68734.0,68733.0,0.41913334]
[1730618137339,0.06521676,68734.0,68733.0,0.3758]
[1730618140145,0.06521676,68734.0,68733.0,0.015]
[1730618141829,0.06521676,68734.0,68733.0,0.05834134]
[1730618143134,0.06521676,68734.0,68733.0,0.015]
[1730618143527,0.06521676,68734.0,68733.0,0.05834134]
[1730618144531,0.06521676,68734.0,68733.0,0.015]
[1730618145534,0.001,68734.0,68733.0,0.015]
[1730618145732,0.001,68734.0,68733.0,0.05834134]
[1730618147541,0.001,68734.0,68733.0,0.015]
[1730618159034,0.06521676,68734.0,68733.0,0.015]
[1730618167849,0.13798576,68734.0,68733.0,0.015]
[1730618169350,0.072771,68732.0,68731.0,0.04341141]
[1730618169662,0.07278,68724.0,68723.0,0.05784092]
[1730618169841,0.07278,68724.0,68722.0,0.05784092]
[1730618169842,0.072781,68723.0,68722.0,0.05784092]
[1730618170047,0.072783,68721.0,68720.0,0.07222223]
[1730618170355,0.072783,68721.0,68719.0,0.07222223]
[1730618170356,0.072784,68720.0,68719.0,0.07222223]
[1730618170547,0.072784,68720.0,68719.0,0.07677383]
[1730618170747,0.072784,68720.0,68719.0,0.07222223]
[1730618171352,0.072785,68719.0,68718.0,0.07222223]
[1730618171552,0.072785,68719.0,68718.0,0.16547296]
[1730618172059,0.072785,68719.0,68718.0,0.17002456]
[1730618172248,0.072785,68719.0,68718.0,0.0045516]
[1730618172651,0.072787,68717.0,68716.0,0.07222223]
[1730618172850,0.072787,68717.0,68716.0,0.00455182]
[1730618173254,0.072787,68717.0,68715.0,0.10492223]
[1730618173255,0.072788,68716.0,68715.0,0.10492223]
[1730618173554,0.072788,68716.0,68715.0,0.10947407]
[1730618173742,0.13700476,68716.0,68715.0,0.10947407]
[1730618173947,0.13700476,68716.0,68715.0,0.07677407]
[1730618174144,0.13700476,68716.0,68715.0,0.00455184]
[1730618175550,0.072789,68715.0,68714.0,0.00218272]
[1730618175950,0.104089,68715.0,68714.0,0.00218272]
[1730618176862,0.106089,68715.0,68714.0,0.01618272]
[1730618177752,0.466889,68715.0,68714.0,0.01618272]
[1730618178148,0.50956852,68715.0,68714.0,0.01618272]
[1730618178557,0.57378528,68715.0,68714.0,0.01618272]
[1730618178761,0.50956852,68715.0,68714.0,0.01618272]
[1730618182558,0.072803,68702.0,68701.0,0.3608]
[1730618184465,0.073803,68702.0,68701.0,0.3608]
[1730618185066,0.074803,68702.0,68701.0,0.3608]
[1730618186164,0.072809,68696.0,68695.0,0.40582056]
[1730618186353,0.072809,68696.0,68695.0,0.3653532]
[1730618186664,0.072809,68696.0,68695.0,0.3608]
[1730618188059,0.074809,68696.0,68695.0,0.3608]
[1730618189966,0.07281,68695.0,68694.0,0.04408415]
[1730618190157,0.06421676,68695.0,68693.0,0.0323]
[1730618190465,0.072812,68694.0,68693.0,0.0323]
[1730618191559,0.072812,68694.0,68693.0,0.07696547]
[1730618191967,0.073812,68694.0,68693.0,0.07696547]
[1730618192657,0.074812,68694.0,68693.0,0.07696547]
[1730618196762,0.13902876,68694.0,68693.0,0.04466547]
[1730618196963,0.072813,68693.0,68692.0,0.0309]
[1730618197680,0.072813,68693.0,68692.0,0.07502742]
[1730618198479,0.073813,68693.0,68692.0,0.07502742]
[1730618198668,0.074813,68693.0,68692.0,0.07502742]
[1730618200670,0.074813,68693.0,68692.0,0.13924418]
[1730618207985,0.074813,68693.0,68692.0,0.23373915]
[1730618209168,0.074813,68693.0,68692.0,0.59453915]
[1730618209481,0.074813,68693.0,68692.0,0.23373915]
[1730618209679,0.074813,68693.0,68692.0,0.59453915]
[1730618210782,0.074813,68693.0,68692.0,0.23373915]
[1730618210983,0.074813,68693.0,68692.0,0.59453915]
[1730618211187,0.074813,68693.0,68692.0,0.68110558]
[1730618212283,0.074813,68693.0,68692.0,0.59461312]
[1730618212473,0.074813,68693.0,68692.0,0.59916641]
[1730618212875,0.074813,68693.0,68692.0,0.59461312]
[1730618213085,0.074813,68693.0,68692.0,0.59916641]
[1730618213975,0.074813,68693.0,68692.0,0.23836641]
[1730618214175,0.074813,68693.0,68692.0,0.70740256]
[1730618214379,0.074813,68693.0,68692.0,0.71195584]
[1730618214878,0.074813,68693.0,68692.0,0.5991664]
[1730618215387,0.074813,68693.0,68692.0,0.68621266]
[1730618216287,0.074813,68693.0,68692.0,0.59924322]
[1730618216688,0.074813,68693.0,68692.0,0.50412646]
[1730618216985,0.074813,68693.0,68692.0,0.50412297]
[1730618217380,0.074813,68693.0,68692.0,0.59113025]
[1730618217580,0.074813,68693.0,68692.0,0.50412297]
[1730618217780,0.074813,68693.0,68692.0,0.49956969]
[1730618217981,0.108013,68693.0,68692.0,0.49956969]
[1730618218871,0.107013,68693.0,68692.0,0.13876969]
[1730618219071,0.108013,68693.0,68692.0,0.49956969]
[1730618219272,0.107013,68693.0,68692.0,0.49956969]
[1730618220882,0.107013,68693.0,68692.0,0.49951506]
[1730618222278,0.107013,68693.0,68692.0,0.11662531]
[1730618222882,0.107013,68693.0,68692.0,0.04412742]
[1730618223088,0.107013,68693.0,68692.0,0.09468547]
[1730618224580,0.107013,68693.0,68692.0,0.09463302]
[1730618229192,0.107013,68693.0,68692.0,0.09458089]
[1730618229593,0.107013,68693.0,68692.0,0.13819586]
[1730618229989,0.107013,68693.0,68692.0,0.1160853]
[1730618230177,0.107013,68693.0,68692.0,0.07247033]
[1730618230884,0.107013,68693.0,68689.0,0.07247033]
[1730618231193,0.072817,68689.0,68688.0,0.07247033]
[1730618231492,0.072817,68689.0,68688.0,0.16711032]
[1730618232190,0.072817,68689.0,68688.0,0.07247033]
[1730618232382,0.072817,68689.0,68685.0,0.07465384]
[1730618232582,0.06421676,68686.0,68685.0,0.07465384]
[1730618232791,0.06421676,68686.0,68685.0,0.16954197]
[1730618233182,0.06421676,68686.0,68685.0,0.07465384]
[1730618233488,0.13703676,68686.0,68685.0,0.00218351]
[1730618233683,0.13803676,68686.0,68685.0,0.00218351]
[1730618233896,0.20225352,68686.0,68685.0,0.00218351]
[1730618234579,0.20225352,68686.0,68685.0,0.06014586]
[1730618235284,0.13803676,68686.0,68685.0,0.00218351]
[1730618235481,0.20225352,68686.0,68685.0,0.00218351]
[1730618235792,0.13803676,68686.0,68685.0,0.00218351]
[1730618236086,0.20225352,68686.0,68685.0,0.00218351]
[1730618237093,0.13803676,68686.0,68685.0,0.00218351]
[1730618243785,0.20225352,68686.0,68685.0,0.00218351]
[1730618244390,0.56305352,68686.0,68685.0,0.00218351]
[1730618244693,0.072824,68682.0,68681.0,0.05791682]
[1730618244894,0.13704076,68682.0,68681.0,0.05791682]
[1730618245895,0.072826,68680.0,68679.0,0.05791682]
[1730618246090,0.13704276,68680.0,68679.0,0.05791682]
[1730618247194,0.072827,68679.0,68675.0,0.0318]
[1730618247395,0.072827,68679.0,68676.0,0.00455455]
[1730618247599,0.072831,68676.0,68675.0,0.0318]
[1730618247801,0.072831,68676.0,68675.0,0.03635455]
[1730618249096,0.073831,68676.0,68675.0,0.03635455]
[1730618249401,0.074831,68676.0,68675.0,0.03635455]
[1730618252892,0.074831,68676.0,68675.0,0.13136954]
[1730618256400,0.074831,68676.0,68675.0,0.12681499]
[1730618256607,0.074831,68676.0,68675.0,0.13136954]
[1730618257708,0.074831,68676.0,68675.0,0.13140727]
[1730618259098,0.074831,68676.0,68675.0,0.13142392]
[1730618259302,0.074831,68676.0,68675.0,0.21829915]
[1730618260111,0.074831,68676.0,68675.0,0.13142392]
[1730618261297,0.074831,68676.0,68675.0,0.21836378]
[1730618262111,0.074831,68676.0,68675.0,0.13142392]
[1730618262412,0.074831,68676.0,68675.0,0.13152283]
[1730618266902,0.073831,68676.0,68675.0,0.13152283]
[1730618267104,0.073831,68676.0,68675.0,0.13159657]
[1730618267105,0.074831,68676.0,68675.0,0.13159657]
[1730618267305,0.073831,68676.0,68675.0,0.13159657]
[1730618267703,0.072831,68676.0,68675.0,0.13159657]
[1730618267908,0.072831,68676.0,68675.0,0.24513245]
[1730618267909,0.074831,68676.0,68675.0,0.24513245]
[1730618270509,0.074831,68676.0,68675.0,0.2405779]
[1730618270714,0.074831,68676.0,68675.0,0.2087779]
[1730618272121,0.074831,68676.0,68675.0,0.09524202]
[1730618272415,0.93668776,68676.0,68675.0,0.09524202]
[1730618272605,0.89425676,68676.0,68674.0,0.07256459]
[1730618272806,0.072833,68674.0,68673.0,0.07256459]
[1730618273005,0.072834,68673.0,68672.0,0.07256459]
[1730618273211,0.072836,68671.0,68670.0,0.07256459]
[1730618273416,0.20126952,68671.0,68670.0,0.16676838]
[1730618274213,0.072837,68670.0,68669.0,0.07256459]
[1730618274405,0.072837,68670.0,68668.0,0.07256459]
[1730618274406,0.072838,68669.0,68668.0,0.07256459]
[1730618274604,0.13705476,68669.0,68668.0,0.07256459]
[1730618275015,0.07284,68667.0,68666.0,0.07256459]
[1730618275320,0.072841,68666.0,68665.0,0.07256459]
[1730618275615,0.072841,68666.0,68665.0,0.16685529]
[1730618276209,0.072842,68665.0,68664.0,0.07256459]
[1730618276416,0.13705876,68665.0,68664.0,0.16684488]
[1730618277115,0.13705876,68665.0,68664.0,0.07256459]
[1730618278316,0.13705876,68665.0,68660.0,0.3608]
[1730618278317,0.072843,68664.0,68663.0,0.07256459]
[1730618278518,0.13705976,68664.0,68663.0,0.16682093]
[1730618279113,0.13705976,68664.0,68663.0,0.07256459]
[1730618279515,0.06521676,68664.0,68661.0,0.07256459]
[1730618279716,0.13706176,68662.0,68661.0,0.07256459]
[1730618280222,0.13706176,68662.0,68661.0,0.09428282]
[1730618280605,0.13706176,68662.0,68661.0,0.09428108]
[1730618280908,0.13806176,68662.0,68661.0,0.09428108]
[1730618281823,0.13806176,68662.0,68661.0,0.16670388]
[1730618282316,0.13806176,68662.0,68659.0,0.0724228]
[1730618282317,0.42601676,68662.0,68659.0,0.0724228]
[1730618282517,0.07285,68658.0,68657.0,0.0724228]
[1730618282710,0.072851,68657.0,68656.0,0.0724228]
[1730618283019,0.072851,68657.0,68656.0,0.17158376]
[1730618283419,0.072851,68657.0,68656.0,0.07697871]
[1730618283920,0.072851,68657.0,68656.0,0.17159682]
[1730618284120,0.074851,68657.0,68656.0,0.16704091]
[1730618284315,0.074851,68657.0,68656.0,0.17159676]
[1730618284619,0.074851,68657.0,68656.0,0.07697865]
[1730618285419,0.074851,68657.0,68656.0,0.00455585]
[1730618290022,0.074851,68657.0,68656.0,0.0993161]
[1730618290520,0.13906776,68657.0,68656.0,0.0993161]
[1730618290715,0.13906776,68657.0,68656.0,0.17168557]
[1730618291215,0.13906776,68657.0,68656.0,0.16712972]
[1730618291415,0.072852,68656.0,68655.0,0.07236947]
[1730618291612,0.072852,68656.0,68655.0,0.17173582]
[1730618292120,0.072852,68656.0,68655.0,0.17173583]
[1730618292317,0.072852,68656.0,68655.0,0.16717991]